bitfinex-derivatives/quotes_SOLF0:USTF0_20241021
["timestamp","ask_amount","ask_price","bid_price","bid_amount"]
[1729527407480,3.01596993,164.74,164.73,3.0357]
[1729527407687,4.9,164.75,164.65,6.0743]
[1729527408091,7.99555338,164.75,164.65,6.0743]
[1729527408394,7.99555338,164.75,164.64,4.9]
[1729527408989,7.99555338,164.75,164.74,3.0355]
[1729527409984,3.09555338,164.75,164.74,3.0355]
[1729527410293,4.9,164.76,164.75,3.0353]
[1729527410493,3.03376217,164.79,164.71,6.0718]
[1729527410792,4.9,164.8,164.71,6.0718]
[1729527411000,8.01028184,164.8,164.69,0.1187]
[1729527411192,8.01028184,164.8,164.68,4.9]
[1729527411395,1.2476,164.79,164.73,3.0357]
[1729527411598,1.2476,164.79,164.66,6.0737]
[1729527412186,4.2822,164.79,164.73,3.0356]
[1729527413893,1.2476,164.79,164.66,6.0737]
[1729527414486,4.2822,164.79,164.73,3.0356]
[1729527414892,4.2822,164.79,164.66,6.0737]
[1729527416602,4.2822,164.79,164.73,3.0355]
[1729527419101,1.2476,164.79,164.74,3.0355]
[1729527420506,4.2822,164.79,164.74,3.0355]
[1729527421099,3.0354,164.75,164.7,3.0362]
[1729527421299,6.2078,164.74,164.7,3.0362]
[1729527422603,7.4966,164.74,164.7,3.0362]
[1729527423002,7.4966,164.74,164.63,2.6037]
[1729527423308,25.7466,164.74,164.6,0.1169]
[1729527423499,28.83899992,164.74,164.6,3.10206837]
[1729527423698,3.0361,164.71,164.65,3.037]
[1729527423904,4.9,164.7,164.65,3.037]
[1729527424200,4.9,164.7,164.6,3.10206837]
[1729527424402,4.9,164.7,164.59,4.9]
[1729527425000,4.9,164.69,164.66,3.0368]
[1729527425720,7.99793445,164.69,164.66,3.0368]
[1729527426002,7.99793445,164.69,164.56,8.8832]
[1729527426003,7.99793445,164.69,164.56,13.7832]
[1729527426403,23.15,164.69,164.51,4.9]
[1729527426603,23.15,164.69,164.49,2.5692]
[1729527426805,36.49,164.67,164.49,2.5692]
[1729527427002,18.25,164.65,164.49,2.5692]
[1729527427202,6.2398,164.64,164.49,2.5692]
[1729527427400,6.2398,164.64,164.53,3.0393]
[1729527427799,3.038,164.61,164.53,3.0393]
[1729527428004,4.9,164.6,164.52,3.0395]
[1729527428306,4.9,164.6,164.49,1.291]
[1729527428307,4.9,164.59,164.46,4.9]
[1729527428503,1.2895,164.58,164.51,3.0396]
[1729527428705,1.2895,164.58,164.44,4.9]
[1729527428706,2.6421,164.58,164.44,4.9]
[1729527428911,5.6807,164.58,164.44,4.9]
[1729527429716,2.6421,164.58,164.42,6.305]
[1729527429901,2.6421,164.58,164.42,1.405]
[1729527430416,1.0,164.57,164.47,3.0404]
[1729527430912,1.2528,164.56,164.47,3.0404]
[1729527431210,4.9,164.55,164.38,4.9]
[1729527431417,4.9,164.55,164.37,4.9]
[1729527431715,4.9,164.55,164.42,3.0412]
[1729527431716,3.0399,164.5,164.42,3.0412]
[1729527431911,6.1285,164.49,164.36,4.9]
[1729527432112,9.1913425,164.49,164.36,4.9]
[1729527432313,3.0403,164.48,164.41,3.0416]
[1729527432508,2.4942,164.48,164.33,2.7631]
[1729527432711,2.4942,164.48,164.33,7.6631]
[1729527432913,2.4942,164.48,164.39,3.0419]
[1729527432914,3.0407,164.46,164.39,3.0419]
[1729527433111,4.9,164.45,164.33,2.645]
[1729527433416,3.0421,164.39,164.31,3.0433]
[1729527433618,4.9,164.38,164.28,5.0204]
[1729527433910,4.9,164.37,164.28,5.0204]
[1729527434604,3.01295115,164.36,164.33,3.0429]
[1729527435412,7.91295115,164.36,164.34,3.0428]
[1729527435616,4.9,164.36,164.34,3.0428]
[1729527436015,1.3171,164.4,164.33,3.0431]
[1729527436310,1.3171,164.4,164.28,5.0204]
[1729527436311,4.9,164.39,164.28,5.0204]
[1729527436615,7.91539676,164.39,164.28,0.1204]
[1729527436814,3.01539676,164.39,164.28,0.1204]
[1729527437015,4.9,164.38,164.28,0.1204]
[1729527437211,7.93396335,164.38,164.33,3.0429]
[1729527439519,4.9,164.37,164.33,3.0429]
[1729527440219,7.94674691,164.37,164.33,3.0429]
[1729527440416,7.94674691,164.37,164.3,3.0435]
[1729527440612,7.94674691,164.37,164.27,4.9]
[1729527441114,7.94674691,164.37,164.24,0.1225]
[1729527441310,7.94674691,164.37,164.25,6.01896042]
[1729527441514,7.94674691,164.37,164.29,3.0437]
[1729527441928,10.98914691,164.37,164.29,3.0437]
[1729527442424,3.043,164.34,164.21,4.9]
[1729527442721,4.9,164.33,164.28,3.0439]
[1729527442918,4.9,164.32,164.28,3.0439]
[1729527443322,4.9,164.32,164.21,4.9]
[1729527443620,4.9,164.32,164.22,1.11928667]
[1729527443813,4.9,164.32,164.31,3.0434]
[1729527444018,4.9,164.32,164.23,3.02726721]
[1729527444220,3.0826626,164.31,164.2,4.9]
[1729527444530,3.0826626,164.31,164.24,1.11917878]
[1729527444724,4.9,164.32,164.23,3.11995415]
[1729527444921,4.9,164.32,164.29,3.0437]
[1729527445123,4.9,164.32,164.22,3.00394922]
[1729527445323,4.9,164.32,164.2,4.9]
[1729527445524,4.9,164.32,164.23,1.11919218]
[1729527445827,4.9,164.35,164.24,7.32729218]
[1729527446124,4.9,164.35,164.25,2.47429218]
[1729527446424,4.9,164.35,164.26,1.11919218]
[1729527446628,4.9,164.35,164.32,3.0432]
[1729527447730,4.9,164.35,164.25,4.37153269]
[1729527447918,4.9,164.35,164.25,1.3551]
[1729527448124,4.9,164.35,164.26,1.11901016]
[1729527448422,4.9,164.35,164.27,1.11901016]
[1729527448828,4.9,164.35,164.34,3.0429]
[1729527449025,4.9,164.37,164.28,1.11901016]
[1729527449230,4.9,164.37,164.26,3.00906693]
[1729527449530,4.9,164.37,164.34,3.0428]
[1729527450129,4.9,164.37,164.33,3.043]
[1729527450930,4.9,164.37,164.27,4.9]
[1729527451229,5.58335076,164.4,164.28,1.11895314]
[1729527451426,4.9,164.39,164.29,1.11895314]
[1729527451621,4.9,164.39,164.3,1.11895314]
[1729527451823,4.9,164.39,164.31,4.9]
[1729527452024,4.9,164.39,164.36,3.0423]
[1729527452229,4.9,164.39,164.31,4.9]
[1729527452425,4.9,164.39,164.25,1.3551]
[1729527452728,4.9,164.39,164.36,3.0425]
[1729527452928,4.9,164.39,164.28,2.98313351]
[1729527453136,4.9,164.39,164.37,3.0423]
[1729527453928,4.35715076,164.4,164.37,3.0423]
[1729527454135,3.04005076,164.4,164.39,3.042]
[1729527454433,4.9,164.41,164.39,3.042]
[1729527454941,3.01076906,164.4,164.39,3.042]
[1729527455140,3.01076906,164.4,164.38,3.0421]
[1729527456339,4.9,164.41,164.38,3.0421]
[1729527457734,4.9,164.41,164.28,6.0877]
[1729527457935,7.9417,164.41,164.35,3.0426]
[1729527459138,4.9,164.4,164.29,6.0876]
[1729527459332,7.97643491,164.4,164.29,6.0876]
[1729527459534,7.97643491,164.4,164.37,3.0422]
[1729527461731,11.01823491,164.4,164.34,3.0427]
[1729527461946,7.97643491,164.4,164.24,1.3081]
[1729527462136,7.97643491,164.4,164.26,1.11908486]
[1729527462344,3.0426,164.36,164.25,1.2325]
[1729527462644,4.9,164.35,164.25,1.2325]
[1729527462845,6.1413,164.35,164.29,3.0437]
[1729527463039,6.1413,164.35,164.25,1.2325]
[1729527463339,6.1413,164.35,164.24,6.2081]
[1729527463537,2.5865,164.34,164.24,6.2081]
[1729527463943,5.6294,164.34,164.28,3.0439]
[1729527467839,2.5865,164.34,164.21,4.9]
[1729527468041,2.5865,164.34,164.22,2.77374178]
[1729527468243,2.5865,164.34,164.23,1.11934534]
[1729527468453,2.5865,164.34,164.21,7.66343815]
[1729527468643,2.5865,164.34,164.22,2.77366002]
[1729527468943,2.5865,164.34,164.28,3.0439]
[1729527469341,2.5865,164.34,164.21,7.66343815]
[1729527469542,3.0431,164.33,164.22,2.77435724]
[1729527469743,3.0431,164.33,164.27,3.0441]
[1729527469940,2.5865,164.34,164.21,2.76343815]
[1729527470143,4.9,164.33,164.26,3.0443]
[1729527470539,4.9,164.33,164.19,2.76343815]
[1729527470743,4.9,164.32,164.2,2.77378239]
[1729527471043,4.9,164.32,164.19,2.76343815]
[1729527471246,4.9,164.32,164.2,2.77386281]
[1729527471448,3.0436,164.31,164.24,3.0446]
[1729527471744,3.02770834,164.31,164.17,5.84265975]
[1729527471949,3.0432,164.33,164.27,3.0441]
[1729527472149,3.0432,164.33,164.18,8.85517081]
[1729527472150,4.9,164.32,164.18,2.76343815]
[1729527472451,4.9,164.32,164.19,2.76304232]
[1729527472651,4.9,164.32,164.2,1.11937758]
[1729527472845,7.9433,164.32,164.26,3.0442]
[1729527473239,4.9,164.32,164.17,10.74265975]
[1729527473445,4.9,164.32,164.22,3.0451]
[1729527473645,4.9,164.32,164.18,6.0917]
[1729527473844,4.9,164.32,164.19,1.11945373]
[1729527474039,4.9,164.32,164.18,6.0917]
[1729527474040,71.37969001,164.34,164.31,3.0434]
[1729527474349,4.9,164.33,164.22,6.0901]
[1729527474559,4.9,164.33,164.3,3.0434]
[1729527474849,4.9,164.33,164.23,1.3028]
[1729527476753,71.37969001,164.34,164.23,1.3028]
[1729527477049,4.9,164.33,164.23,2.6189]
[1729527477348,4.9,164.33,164.29,3.0437]
[1729527478054,4.9,164.33,164.3,3.0436]
[1729527479447,4.9,164.32,164.29,3.0437]
[1729527480452,4.9,164.32,164.27,3.0441]
[1729527483952,4.9,164.32,164.19,4.9]
[1729527484644,3.044,164.28,164.14,0.1215]
[1729527484857,8.7938,164.27,164.16,2.97057146]
[1729527485058,4.9,164.26,164.15,4.9]
[1729527485949,4.9,164.26,164.15,7.97777273]
[1729527486149,4.9,164.26,164.22,3.045]
[1729527486754,4.9,164.26,164.23,3.0448]
[1729527487659,3.8938,164.27,164.23,3.0448]
[1729527487862,4.9,164.25,164.23,3.0448]
[1729527488052,7.99131232,164.25,164.23,3.0448]
[1729527489063,4.9,164.29,164.19,4.9]
[1729527489362,3.01942842,164.28,164.2,7.4923]
[1729527489565,3.01942842,164.28,164.2,10.46543032]
[1729527489758,3.01942842,164.28,164.27,3.0442]
[1729527490156,4.9,164.3,164.2,10.46543032]
[1729527490353,4.9,164.3,164.29,3.0438]
[1729527490557,7.87831509,164.3,164.29,3.0438]
[1729527490969,1.231,164.33,164.31,3.0434]
[1729527491178,4.9,164.32,164.31,3.0434]
[1729527491372,4.9,164.32,164.21,0.1243]
[1729527491575,3.07362361,164.31,164.3,3.0436]
[1729527494477,4.9,164.32,164.3,3.0436]
[1729527494677,7.94024745,164.32,164.3,3.0436]
[1729527496082,19.4856,164.41,164.24,4.9]
[1729527496277,6.171,164.38,164.24,4.9]
[1729527496595,1.271,164.38,164.24,4.9]
[1729527496778,6.171,164.38,164.24,4.9]
[1729527496987,6.171,164.38,164.26,6.0887]
[1729527496988,1.271,164.38,164.26,6.0887]
[1729527497287,68.89232923,164.42,164.27,2.7142]
[1729527497288,8.01232923,164.42,164.27,2.7142]
[1729527497484,4.9,164.43,164.31,6.0868]
[1729527497685,4.9,164.43,164.32,4.9]
[1729527497882,4.9,164.43,164.32,7.94767443]
[1729527498078,4.9,164.43,164.42,3.0414]
[1729527498991,46.9586,164.42,164.32,7.94767443]
[1729527499380,46.9586,164.42,164.41,3.0416]
[1729527500992,46.9586,164.42,164.4,3.0416]
[1729527501289,46.9586,164.42,164.35,4.9]
[1729527501494,46.9586,164.42,164.39,3.0418]
[1729527502082,46.9586,164.42,164.32,4.9]
[1729527502285,46.9586,164.42,164.41,3.0416]
[1729527503691,46.9586,164.42,164.31,3.0885397]
[1729527503891,46.9586,164.42,164.32,4.9]
[1729527504989,46.9586,164.42,164.39,3.0418]
[1729527505594,46.9586,164.42,164.32,4.9]
[1729527506092,46.9586,164.42,164.41,3.0416]
[1729527511401,3.08811902,164.46,164.37,3.7676]
[1729527511702,4.9,164.48,164.45,3.0408]
[1729527511904,7.89835321,164.48,164.45,3.0408]
[1729527513996,7.89835321,164.48,164.36,10.9849]
[1729527515196,7.89835321,164.48,164.37,1.3546]
[1729527516294,7.89835321,164.48,164.4,3.0417]
[1729527516489,7.89835321,164.48,164.37,1.3546]
[1729527517202,7.89835321,164.48,164.44,3.0409]
[1729527519199,7.89835321,164.48,164.36,6.0849]
[1729527521508,7.89835321,164.48,164.43,3.0411]
[1729527523306,7.89835321,164.48,164.39,3.0418]
[1729527523506,7.89835321,164.48,164.34,4.9]
[1729527523907,7.89835321,164.48,164.42,3.0413]
[1729527524111,7.89835321,164.48,164.34,4.9]
[1729527524617,7.89835321,164.48,164.35,6.0853]
[1729527525219,7.89835321,164.48,164.44,3.041]
[1729527526719,7.89835321,164.48,164.38,4.9]
[1729527526920,7.89835321,164.48,164.44,3.041]
[1729527528618,7.89835321,164.48,164.41,3.0416]
[1729527528822,7.89835321,164.48,164.38,4.9]
[1729527529516,7.89835321,164.48,164.45,3.0408]
[1729527531215,7.89835321,164.48,164.38,4.9]
[1729527533326,7.89835321,164.48,164.41,3.0416]
[1729527533622,7.89835321,164.48,164.38,4.9]
[1729527534622,7.89835321,164.48,164.42,3.0412]
[1729527535422,7.89835321,164.48,164.43,3.0412]
[1729527536524,7.89835321,164.48,164.38,4.9]
[1729527536725,7.89835321,164.48,164.44,3.041]
[1729527538430,7.89835321,164.48,164.45,3.0408]
[1729527541326,3.0409,164.45,164.41,3.0414]
[1729527541627,4.9,164.44,164.36,6.0847]
[1729527541832,4.9,164.43,164.36,6.0847]
[1729527542025,6.93365012,164.5,164.33,4.9]
[1729527542225,4.9,164.49,164.37,6.0845]
[1729527542429,4.9,164.49,164.37,10.9845]
[1729527543029,4.9,164.49,164.44,3.041]
[1729527543629,4.9,164.49,164.37,10.9845]
[1729527543826,4.9,164.49,164.34,4.9]
[1729527544224,7.9402,164.49,164.43,3.0411]
[1729527544430,7.9402,164.49,164.34,4.9]
[1729527544930,11.83365012,164.5,164.46,3.0405]
[1729527546529,11.83365012,164.5,164.47,3.0405]
[1729527548436,11.83365012,164.5,164.39,4.9]
[1729527548636,11.83365012,164.5,164.48,3.0403]
[1729527549938,11.83365012,164.5,164.4,3.10664955]
[1729527550639,11.83365012,164.5,164.47,3.0404]
[1729527550839,11.83365012,164.5,164.39,10.9836]
[1729527551242,11.83365012,164.5,164.42,3.0413]
[1729527551436,11.83365012,164.5,164.39,10.9836]
[1729527552137,11.83365012,164.5,164.45,3.0407]
[1729527552445,3.0402,164.49,164.34,6.0856]
[1729527552640,3.0402,164.49,164.43,3.041]
[1729527552841,11.83365012,164.5,164.43,3.041]
[1729527553042,11.83365012,164.5,164.35,4.88]
[1729527553239,3.0404,164.48,164.42,3.0413]
[1729527553541,3.0404,164.48,164.35,10.9653]
[1729527554433,3.0402,164.49,164.43,3.0412]
[1729527555248,3.0402,164.49,164.44,3.0409]
[1729527555442,14.87365012,164.5,164.36,6.085]
[1729527555748,11.83365012,164.5,164.36,6.085]
[1729527556046,3.0401,164.49,164.44,3.0409]
[1729527556947,11.83365012,164.5,164.47,3.0405]
[1729527557347,4.88,164.49,164.39,4.88]
[1729527557656,4.88,164.49,164.48,3.0402]
[1729527562853,4.88,164.49,164.47,3.0404]
[1729527565648,4.88,164.49,164.4,8.7487]
[1729527566054,4.88,164.49,164.4,11.75252854]
[1729527566849,4.88,164.49,164.46,3.0405]
[1729527569258,6.93365012,164.5,164.4,5.66912854]
[1729527569552,65.74,164.58,164.4,5.66912854]
[1729527569553,20.50037568,164.52,164.4,5.66912854]
[1729527569753,11.75393963,164.52,164.41,2.41652214]
[1729527569950,11.75393963,164.52,164.4,5.66912854]
[1729527569951,13.62385751,164.55,164.52,3.0394]
[1729527570151,4.88,164.55,164.52,3.0394]
[1729527570353,4.88,164.55,164.54,3.0392]
[1729527570551,4.88,164.55,164.47,3.9948]
[1729527571660,4.88,164.55,164.52,3.0394]
[1729527572154,4.88,164.55,164.53,3.0393]
[1729527574459,4.88,164.55,164.47,3.9948]
[1729527574957,2.612,164.59,164.47,3.9948]
[1729527575266,4.88,164.59,164.47,3.9948]
[1729527575462,4.88,164.59,164.57,3.0385]
[1729527575961,4.88,164.61,164.51,4.88]
[1729527576663,4.88,164.61,164.52,3.05758573]
[1729527577160,2.6122,164.65,164.52,3.05758573]
[1729527577354,4.88,164.62,164.51,4.88]
[1729527577560,3.0795688,164.62,164.59,3.0381]
[1729527577860,4.88,164.62,164.59,3.0381]
[1729527578064,7.85075656,164.62,164.59,3.0381]
[1729527580077,7.85075656,164.62,164.51,7.84802106]
[1729527580367,2.97075656,164.62,164.61,3.0379]
[1729527580556,4.88,164.64,164.61,3.0379]
[1729527580754,7.95695392,164.64,164.61,3.0379]
[1729527581163,7.95695392,164.64,164.61,3.0378]
[1729527581753,3.07695392,164.64,164.61,3.0378]
[1729527581959,4.88,164.64,164.61,3.0378]
[1729527582163,7.88248453,164.64,164.61,3.0378]
[1729527584465,7.88248453,164.64,164.62,3.0377]
[1729527591170,7.88248453,164.64,164.61,3.0378]
[1729527592962,7.88248453,164.64,164.55,4.88]
[1729527593168,7.88248453,164.64,164.62,3.0377]
[1729527595275,7.88248453,164.64,164.55,4.88]
[1729527595574,7.88248453,164.64,164.54,2.5521]
[1729527596074,7.88248453,164.64,164.6,3.038]
[1729527599070,7.88248453,164.64,164.54,2.5521]
[1729527599684,7.88248453,164.64,164.6,3.0379]
[1729527602183,7.88248453,164.64,164.54,2.5521]
[1729527602486,10.91988453,164.64,164.59,3.0382]
[1729527602788,7.88248453,164.64,164.54,2.5521]
[1729527602983,7.88248453,164.64,164.57,3.0386]
[1729527603184,7.88248453,164.64,164.54,2.5521]
[1729527604483,3.00248453,164.64,164.54,2.5521]
[1729527604684,3.00248453,164.64,164.63,3.0375]
[1729527604988,4.88,164.66,164.57,4.88]
[1729527605178,3.09257171,164.66,164.57,4.88]
[1729527605385,4.88,164.67,164.57,4.88]
[1729527606094,7.92794494,164.67,164.57,4.88]
[1729527606889,7.92794494,164.67,164.63,3.0374]
[1729527607696,7.92794494,164.67,164.57,4.88]
[1729527607890,7.92794494,164.67,164.55,4.88]
[1729527608189,3.8813,164.66,164.55,4.88]
[1729527608496,3.8813,164.66,164.59,3.0381]
[1729527608497,3.0372,164.65,164.59,3.0381]
[1729527609786,3.0372,164.65,164.6,3.0381]
[1729527610185,3.8813,164.66,164.53,1.3181]
[1729527610392,22.1213,164.66,164.5,2.4961]
[1729527610585,22.1213,164.66,164.48,4.88]
[1729527611197,22.1213,164.66,164.49,83.07415908]
[1729527611595,3.038,164.61,164.54,3.0392]
[1729527611797,4.88,164.6,164.49,80.57805908]
[1729527611997,8.8151,164.59,164.49,80.57805908]
[1729527612196,4.88,164.58,164.49,80.57805908]
[1729527612504,7.92971642,164.58,164.49,80.57805908]
[1729527613604,7.92971642,164.58,164.53,3.0392]
[1729527614597,7.92971642,164.58,164.42,2.4961]
[1729527614798,7.92971642,164.58,164.43,4.88]
[1729527614997,7.92971642,164.58,164.42,7.3761]
[1729527615503,3.0393,164.54,164.48,3.0402]
[1729527615704,4.88,164.53,164.48,3.0402]
[1729527615999,7.9194,164.53,164.48,3.0402]
[1729527616202,7.9194,164.53,164.47,3.0404]
[1729527616503,2.535,164.52,164.41,6.2187]
[1729527616807,2.535,164.52,164.48,3.0403]
[1729527619003,2.535,164.52,164.41,6.2187]
[1729527619305,2.535,164.52,164.49,3.0401]
[1729527620113,2.535,164.52,164.51,3.0397]
[1729527620403,4.88,164.53,164.41,8.7969]
[1729527620598,4.88,164.53,164.5,3.0399]
[1729527625499,4.88,164.53,164.41,8.7969]
[1729527625699,4.88,164.53,164.42,6.0827]
[1729527627908,4.88,164.53,164.51,3.0397]
[1729527629503,4.88,164.53,164.42,6.0827]
[1729527629504,4.88,164.53,164.5,3.0398]
[1729527630711,4.88,164.53,164.42,6.0827]
[1729527631207,54.88,164.53,164.45,3.0408]
[1729527631407,54.88,164.53,164.42,6.0827]
[1729527632705,54.88,164.53,164.5,3.0398]
[1729527634702,54.88,164.53,164.42,6.0827]
[1729527635409,54.88,164.53,164.49,3.04]
[1729527635907,54.88,164.53,164.41,84.53894845]
[1729527636296,1.3163,164.52,164.41,84.53894845]
[1729527636499,3.04,164.5,164.44,3.041]
[1729527636701,7.4519,164.49,164.41,80.62204845]
[1729527637613,10.45389896,164.49,164.44,3.0409]
[1729527637905,10.45389896,164.49,164.41,80.62204845]
[1729527638216,10.45389896,164.49,164.45,3.0407]
[1729527638905,10.45389896,164.49,164.41,80.62204845]
[1729527639305,13.49409896,164.49,164.41,80.62204845]
[1729527639505,13.49409896,164.49,164.42,3.0412]
[1729527639804,13.49409896,164.49,164.41,80.62204845]
[1729527640208,3.0405,164.47,164.41,3.0415]
[1729527640909,10.45389896,164.49,164.34,3.8485]
[1729527641415,3.0409,164.45,164.4,3.0418]
[1729527641620,4.86,164.44,164.4,3.0418]
[1729527642414,7.9011,164.44,164.39,3.0419]
[1729527642609,4.86,164.44,164.34,3.8485]
[1729527643212,4.86,164.44,164.39,3.0418]
[1729527644712,4.86,164.44,164.4,3.0418]
[1729527645616,4.86,164.44,164.32,4.86]
[1729527645914,1.2618,164.43,164.32,4.86]
[1729527646616,3.0414,164.42,164.29,8.681]
[1729527646813,5.6212,164.42,164.29,3.801]
[1729527647616,5.6212,164.42,164.36,3.0424]
[1729527648913,2.5798,164.42,164.29,3.801]
[1729527649119,3.0418,164.41,164.35,3.0427]
[1729527649419,4.88,164.4,164.35,3.0427]
[1729527649810,4.88,164.4,164.29,3.801]
[1729527650005,7.8726912,164.4,164.29,3.801]
[1729527650621,7.8726912,164.4,164.34,3.0427]
[1729527651005,7.8726912,164.4,164.29,3.801]
[1729527651417,7.8726912,164.4,164.29,1.3437]
[1729527651821,7.8726912,164.4,164.34,3.0428]
[1729527652015,7.8726912,164.4,164.29,1.3437]
[1729527652319,10.9145912,164.4,164.33,3.0429]
[1729527652909,10.9145912,164.4,164.28,80.68033591]
[1729527653621,10.9145912,164.4,164.34,3.0428]
[1729527654623,26.1126912,164.4,164.28,80.68033591]
[1729527655419,3.0423,164.38,164.32,3.0431]
[1729527655619,3.0423,164.38,164.28,80.68033591]
[1729527656318,3.0423,164.38,164.33,3.0431]
[1729527657122,3.0426,164.36,164.32,3.0432]
[1729527657325,8.7081,164.35,164.32,3.0432]
[1729527657825,8.7081,164.35,164.33,3.0431]
[1729527662024,8.7081,164.35,164.25,2.6406]
[1729527662226,11.7509,164.35,164.31,3.0433]
[1729527662432,61.7509,164.35,164.31,3.0433]
[1729527662631,3.043,164.34,164.3,3.0435]
[1729527662831,3.043,164.34,164.22,6.0899]
[1729527663133,58.7081,164.35,164.18,3.9472]
[1729527663134,95.2081,164.35,164.18,3.9472]
[1729527663429,3.0438,164.29,164.25,3.0444]
[1729527663633,4.88,164.28,164.18,3.9472]
[1729527663831,9.17535834,164.28,164.18,3.9472]
[1729527664335,9.17535834,164.28,164.24,3.0446]
[1729527664723,10.50415834,164.28,164.24,3.0446]
[1729527665132,13.54825834,164.28,164.24,3.0446]
[1729527665330,7.47,164.28,164.23,3.0448]
[1729527665633,1.3299,164.27,164.12,9.9377]
[1729527665928,84.0,164.26,164.18,3.0457]
[1729527666330,36.5,164.24,164.03,2.99219733]
[1729527666525,3.0459,164.18,164.12,3.0469]
[1729527666725,3.0459,164.18,164.03,3.04032593]
[1729527666726,8.8222,164.17,164.03,3.04032593]
[1729527666926,8.8222,164.17,164.02,3.844]
[1729527667121,8.8222,164.17,164.02,6.84838179]
[1729527667324,8.8222,164.17,164.02,3.844]
[1729527667632,4.86,164.16,164.02,3.844]
[1729527667823,1.0,164.16,164.02,3.844]
[1729527668024,4.86,164.15,164.02,3.844]
[1729527668220,3.9622,164.17,164.14,3.0465]
[1729527668424,3.9622,164.17,164.02,3.844]
[1729527668425,4.86,164.16,164.05,4.86]
[1729527668624,7.84926365,164.16,164.02,3.844]
[1729527669225,7.84926365,164.16,164.03,3.01395823]
[1729527669429,3.8918,164.21,164.02,3.844]
[1729527669629,4.88,164.2,164.17,3.046]
[1729527670030,4.88,164.2,164.09,4.88]
[1729527670031,4.88,164.2,164.18,3.0458]
[1729527670233,4.88,164.2,164.1,3.9104]
[1729527670738,4.88,164.19,164.14,3.0465]
[1729527671426,4.88,164.19,164.13,3.0467]
[1729527671624,3.09139556,164.21,164.1,3.9104]
[1729527671823,4.88,164.2,164.1,3.9104]
[1729527672123,7.88761334,164.2,164.1,3.9104]
[1729527672529,7.88761334,164.2,164.16,3.0462]
[1729527674029,3.00761334,164.2,164.16,3.0462]
[1729527674238,4.88,164.19,164.16,3.0462]
[1729527674632,1.253,164.25,164.11,3.02948708]
[1729527674934,4.88,164.22,164.12,1.11991062]
[1729527675240,2.6388,164.27,164.12,1.11991062]
[1729527675241,46.9547,164.2,164.13,4.88]
[1729527676834,44.9123,164.2,164.19,3.0457]
[1729527677041,40.7059,164.2,164.19,3.0457]
[1729527677238,35.31190001,164.2,164.19,3.0457]
[1729527677928,4.88,164.27,164.17,4.88]
[1729527678131,3.01290752,164.28,164.17,4.88]
[1729527678332,6.1181,164.3,164.17,4.88]
[1729527678539,6.1181,164.3,164.25,3.0444]
[1729527681447,6.1181,164.3,164.19,4.88]
[1729527682243,6.1181,164.3,164.23,3.0448]
[1729527682642,6.1181,164.3,164.18,4.88]
[1729527682837,6.1181,164.3,164.24,3.0447]
[1729527683248,6.1181,164.3,164.25,3.0445]
[1729527683539,6.1181,164.3,164.18,4.88]
[1729527683745,6.1181,164.3,164.19,0.3138]
[1729527684037,6.1181,164.3,164.26,3.0442]
[1729527684442,1.2381,164.3,164.19,0.3138]
[1729527684642,2.5736,164.33,164.19,0.3138]
[1729527684841,4.88,164.32,164.19,0.3138]
[1729527686537,23.12,164.32,164.09,80.77208878]